bitfinex/quotes_SOLUSD_20230402
["timestamp","ask_amount","ask_price","bid_price","bid_amount"]
[1680461658680,102.77447365,20.547,20.535,10.0]
[1680461660278,10.0,20.546,20.534,10.0]
[1680461660481,10.0,20.546,20.533,10.0]
[1680461660679,10.0,20.546,20.535,10.0]
[1680461660882,10.0,20.546,20.533,10.0]
[1680461661088,10.0,20.546,20.535,10.0]
[1680461661286,10.0,20.544,20.533,10.0]
[1680461661490,10.0,20.544,20.535,10.0]
[1680461661689,10.0,20.544,20.534,20.0]
[1680461664592,17.0,20.545,20.534,20.0]
[1680461664794,17.0,20.545,20.534,10.0]
[1680461666608,17.0,20.545,20.533,20.0]
[1680461671611,17.0,20.545,20.533,10.0]
[1680461671821,17.0,20.545,20.535,10.0]
[1680461672200,17.0,20.545,20.533,10.0]
[1680461672516,17.0,20.545,20.534,20.0]
[1680461675407,17.0,20.545,20.531,24.84670672]
[1680461675619,17.0,20.545,20.533,10.0]
[1680461675800,17.0,20.545,20.535,10.0]
[1680461676000,17.0,20.545,20.533,10.0]
[1680461676213,17.0,20.545,20.535,10.0]
[1680461676513,17.0,20.545,20.533,10.0]
[1680461676728,17.0,20.545,20.535,10.0]
[1680461678814,17.0,20.545,20.533,10.0]
[1680461679017,17.0,20.545,20.535,10.0]
[1680461680324,17.0,20.545,20.534,20.0]
[1680461681303,17.0,20.545,20.533,10.0]
[1680461681508,17.0,20.545,20.534,20.0]
[1680461682914,10.0,20.544,20.533,10.0]
[1680461683115,10.0,20.542,20.534,20.0]
[1680461684027,10.0,20.544,20.534,20.0]
[1680461684324,10.0,20.542,20.534,20.0]
[1680461684916,10.0,20.542,20.533,10.0]
[1680461685117,17.0,20.543,20.535,10.0]
[1680461685315,17.0,20.543,20.533,10.0]
[1680461685629,17.0,20.543,20.535,10.0]
[1680461685824,17.0,20.543,20.534,20.0]
[1680461687029,17.0,20.543,20.533,10.0]
[1680461687227,17.0,20.543,20.534,20.0]
[1680461688924,17.0,20.543,20.532,20.0]
[1680461689131,17.0,20.543,20.533,10.0]
[1680461689330,17.0,20.543,20.534,20.0]
[1680461691430,10.0,20.544,20.534,20.0]
[1680461691619,10.0,20.542,20.534,20.0]
[1680461692019,10.0,20.542,20.533,10.0]
[1680461692220,10.0,20.542,20.535,10.0]
[1680461692425,10.0,20.542,20.533,10.0]
[1680461692620,10.0,20.544,20.535,10.0]
[1680461692821,10.0,20.542,20.533,10.0]
[1680461693128,10.0,20.542,20.534,20.0]
[1680461693530,10.0,20.542,20.533,10.0]
[1680461693718,10.0,20.542,20.535,10.0]
[1680461694116,10.0,20.542,20.533,10.0]
[1680461694334,10.0,20.542,20.534,20.0]
[1680461695237,17.0,20.543,20.534,20.0]
[1680461696520,17.0,20.543,20.533,10.0]
[1680461696721,17.0,20.543,20.535,10.0]
[1680461697221,17.0,20.543,20.533,10.0]
[1680461697519,17.0,20.543,20.534,20.0]
[1680461698331,10.0,20.546,20.534,20.0]
[1680461698534,10.0,20.544,20.534,20.0]
[1680461700533,13.406,20.547,20.534,20.0]
[1680461700742,3.406,20.547,20.534,20.0]
[1680461700927,3.406,20.547,20.535,27.0]
[1680461701330,3.406,20.547,20.535,139.302]
[1680461725878,3.406,20.547,20.535,112.302]
[1680461729762,3.406,20.547,20.536,10.0]
[1680461730462,3.406,20.547,20.538,10.0]
[1680461731377,3.406,20.547,20.537,118.0145]
[1680461742083,3.406,20.547,20.538,10.0]
[1680461743567,3.406,20.547,20.54,10.0]
[1680461744287,2.906,20.547,20.54,10.0]
[1680461751876,2.906,20.547,20.542,10.0]
[1680461752076,2.906,20.547,20.544,10.0]
[1680461752380,2.906,20.547,20.542,10.0]
[1680461752676,2.906,20.547,20.544,10.0]
[1680461753178,2.906,20.547,20.542,10.0]
[1680461753485,2.906,20.547,20.544,10.0]
[1680461753993,2.906,20.547,20.54,10.0]
[1680461762797,2.906,20.547,20.533,7.28122241]
[1680461762998,2.906,20.547,20.54,10.0]
[1680461763793,22.5,20.55,20.54,10.0]
[1680461764185,3.406,20.547,20.54,10.0]
[1680461767795,3.406,20.547,20.539,17.0]
[1680461768102,3.406,20.547,20.539,24.28122241]
[1680461768903,3.406,20.547,20.539,17.0]
[1680461771898,3.406,20.547,20.539,10.0]
[1680461772099,3.406,20.547,20.541,10.0]
[1680461776407,3.406,20.547,20.539,10.0]
[1680461776712,3.406,20.547,20.541,10.0]
[1680461779295,3.406,20.547,20.538,17.0]
[1680461782294,3.406,20.547,20.539,10.0]
[1680461782495,3.406,20.547,20.54,17.0]
[1680461782703,3.406,20.547,20.541,10.0]
[1680461783295,3.406,20.547,20.54,17.0]
[1680461791904,3.406,20.547,20.54,10.0]
[1680461794228,3.406,20.547,20.539,17.0]
[1680461801719,3.406,20.547,20.54,10.0]
[1680461801927,3.406,20.547,20.541,17.0]
[1680461802227,3.406,20.547,20.542,10.0]
[1680461802430,3.406,20.547,20.544,10.0]
[1680461803513,3.406,20.547,20.542,10.0]
[1680461803728,3.406,20.547,20.544,10.0]
[1680461804227,3.406,20.547,20.542,10.0]
[1680461804438,3.406,20.547,20.544,10.0]
[1680461806233,3.406,20.547,20.542,10.0]
[1680461806419,3.406,20.547,20.544,10.0]
[1680461807237,3.406,20.547,20.542,10.0]
[1680461807532,3.406,20.547,20.544,10.0]
[1680461808236,3.406,20.547,20.542,10.0]
[1680461808427,3.406,20.547,20.544,10.0]
[1680461808827,3.406,20.547,20.546,10.0]
[1680461809230,6.811,20.553,20.547,10.0]
[1680461809742,6.811,20.553,20.549,10.0]
[1680461810241,6.811,20.553,20.551,10.0]
[1680461813331,6.811,20.553,20.55,17.0]
[1680461825951,6.811,20.553,20.549,10.0]
[1680461826152,6.811,20.553,20.551,10.0]
[1680461826337,6.811,20.553,20.552,17.0]
[1680461827945,6.811,20.553,20.55,17.0]
[1680461828253,6.811,20.553,20.549,10.0]
[1680461828451,6.811,20.553,20.551,10.0]
[1680461828952,6.811,20.553,20.552,17.0]
[1680461830150,6.811,20.553,20.55,17.0]
[1680461831549,6.811,20.553,20.549,10.0]
[1680461831740,6.811,20.553,20.55,17.0]
[1680461832854,6.811,20.553,20.549,10.0]
[1680461833154,6.811,20.553,20.55,17.0]
[1680461835364,6.811,20.553,20.549,10.0]
[1680461835565,6.811,20.553,20.55,17.0]
[1680461837754,6.811,20.553,20.549,10.0]
[1680461837954,6.811,20.553,20.55,17.0]
[1680461840067,6.811,20.553,20.549,10.0]
[1680461840265,6.811,20.553,20.55,17.0]
[1680461843878,6.811,20.553,20.549,10.0]
[1680461844170,6.811,20.553,20.55,17.0]
[1680461847081,6.811,20.553,20.544,10.0]
[1680461848475,6.811,20.553,20.547,10.0]
[1680461850771,6.811,20.553,20.549,10.0]
[1680461850979,6.811,20.553,20.551,10.0]
[1680461851879,6.811,20.553,20.549,10.0]
[1680461852076,6.811,20.553,20.551,10.0]
[1680461852768,6.811,20.553,20.549,10.0]
[1680461853066,6.811,20.553,20.551,10.0]
[1680461853779,6.811,20.553,20.549,10.0]
[1680461853973,6.811,20.553,20.551,10.0]
[1680461854779,6.811,20.553,20.549,10.0]
[1680461854979,6.811,20.553,20.551,10.0]
[1680461855779,6.811,20.553,20.549,10.0]
[1680461855970,6.811,20.553,20.551,10.0]
[1680461856469,6.811,20.553,20.549,10.0]
[1680461856669,6.811,20.553,20.551,10.0]
[1680461857270,22.55,20.56,20.551,10.0]
[1680461857576,22.55,20.56,20.549,10.0]
[1680461857577,6.811,20.553,20.549,10.0]
[1680461857760,6.811,20.553,20.551,10.0]
[1680461858084,6.811,20.553,20.55,17.0]
[1680461860774,10.0,20.559,20.55,17.0]
[1680461861071,6.811,20.553,20.55,17.0]
[1680461861273,6.811,20.553,20.549,10.0]
[1680461861573,6.811,20.553,20.55,17.0]
[1680461865981,6.811,20.553,20.549,10.0]
[1680461866183,6.811,20.553,20.55,17.0]
[1680461872291,6.811,20.553,20.549,10.0]
[1680461872493,6.811,20.553,20.551,10.0]
[1680461872880,6.811,20.553,20.552,17.0]
[1680461874293,6.811,20.553,20.552,37.0]
[1680461885899,6.811,20.553,20.552,20.0]
[1680461886097,6.811,20.553,20.545,10.0]
[1680461886402,6.811,20.553,20.547,10.0]
[1680461886590,6.811,20.553,20.548,20.0]
[1680461887394,6.811,20.553,20.549,17.0]
[1680461887589,6.811,20.553,20.55,20.0]
[1680461887790,6.811,20.553,20.551,17.0]
[1680461887990,6.811,20.553,20.552,20.0]
[1680461888201,6.811,20.553,20.552,37.0]
[1680461888909,6.811,20.553,20.552,20.0]
[1680461889101,6.811,20.553,20.549,10.0]
[1680461889395,6.811,20.553,20.55,20.0]
[1680461890103,6.811,20.553,20.549,10.0]
[1680461890303,6.811,20.553,20.55,20.0]
[1680461891001,6.811,20.553,20.549,10.0]
[1680461891207,6.811,20.553,20.55,20.0]
[1680461892006,6.811,20.553,20.547,10.0]
[1680461892208,6.811,20.553,20.548,37.0]
[1680461898790,6.811,20.553,20.548,93.60746388]
[1680461904600,6.811,20.553,20.549,10.0]
[1680461904800,6.811,20.553,20.551,10.0]
[1680461904995,6.811,20.553,20.552,37.0]
[1680461923925,6.811,20.553,20.552,20.0]
[1680461925420,6.811,20.553,20.545,56.60746388]
[1680461925730,6.811,20.553,20.53,22.54]
[1680461926230,6.811,20.553,20.542,14.38805599]
[1680461926425,6.811,20.553,20.538,10.0]
[1680461926817,6.811,20.553,20.539,20.0]
[1680461927016,6.811,20.553,20.54,10.0]
[1680461927216,6.811,20.553,20.542,10.0]
[1680461927438,6.811,20.553,20.544,10.0]
[1680461927934,6.811,20.553,20.545,17.0]
[1680461928631,6.811,20.553,20.545,10.0]
[1680461928823,6.811,20.553,20.546,17.0]
[1680461929332,6.811,20.553,20.543,20.0]
[1680461929333,6.811,20.553,20.545,10.0]
[1680461929533,6.811,20.553,20.546,17.0]
[1680461930125,6.811,20.553,20.545,10.0]
[1680461930434,6.811,20.553,20.546,17.0]
[1680461931721,6.811,20.553,20.545,10.0]
[1680461931921,6.811,20.553,20.546,17.0]
[1680461937442,6.811,20.553,20.545,10.0]
[1680461937737,6.811,20.553,20.547,10.0]
[1680461938139,6.811,20.553,20.548,17.0]
[1680461939540,6.811,20.553,20.547,10.0]
[1680461939742,6.811,20.553,20.548,17.0]
[1680461940423,6.811,20.553,20.546,17.0]
[1680461942827,6.811,20.553,20.546,10.0]
[1680461943027,6.811,20.553,20.547,17.0]
[1680461943228,6.811,20.553,20.544,10.0]
[1680461945348,6.811,20.553,20.543,34.34019025]
[1680461946334,6.811,20.553,20.543,20.0]
[1680461946534,6.811,20.553,20.542,10.0]
[1680461946745,6.811,20.553,20.543,20.0]
[1680461947531,6.811,20.553,20.542,10.0]
[1680461947831,6.811,20.553,20.543,20.0]
[1680461948544,6.811,20.553,20.542,10.0]
[1680461948737,6.811,20.553,20.543,20.0]
[1680461949542,6.811,20.553,20.542,10.0]
[1680461949735,6.811,20.553,20.543,20.0]
[1680461951131,6.811,20.553,20.545,10.0]
[1680461951332,6.811,20.553,20.546,17.0]
[1680461952143,6.811,20.553,20.545,10.0]
[1680461952447,6.811,20.553,20.546,17.0]
[1680461953348,6.811,20.553,20.545,10.0]
[1680461953534,6.811,20.553,20.546,17.0]
[1680461954335,6.811,20.553,20.545,10.0]
[1680461954532,6.811,20.553,20.546,17.0]
[1680461954947,6.811,20.553,20.545,10.0]
[1680461955151,6.811,20.553,20.546,17.0]
[1680461955940,6.811,20.553,20.545,10.0]
[1680461956135,6.811,20.553,20.546,17.0]
[1680461956854,6.811,20.553,20.545,10.0]
[1680461957051,6.811,20.553,20.546,17.0]
[1680461957559,6.811,20.553,20.545,10.0]
[1680461957743,6.811,20.553,20.546,17.0]
[1680461959350,6.811,20.553,20.545,10.0]
[1680461959551,6.811,20.553,20.546,17.0]
[1680461960158,6.811,20.553,20.545,10.0]
[1680461960358,6.811,20.553,20.546,17.0]
[1680461960565,6.811,20.553,20.543,20.0]
[1680461961452,28.19,20.55,20.543,20.0]
[1680461961863,10.0,20.549,20.538,20.0]
[1680461963051,10.0,20.549,20.536,10.0]
[1680461963362,10.0,20.549,20.537,37.0]
[1680461969263,10.0,20.549,20.535,17.0]
[1680461970160,10.0,20.549,20.532,19.467205]
[1680461970375,10.0,20.547,20.533,20.0]
[1680461970667,10.0,20.545,20.533,20.0]
[1680461975452,10.0,20.543,20.533,20.0]
[1680461980473,10.0,20.543,20.529,0.1176868]
[1680461980676,10.0,20.543,20.529,17.1176868]
[1680461980885,10.0,20.543,20.531,10.0]
[1680461981090,10.0,20.543,20.533,10.0]
[1680461981278,10.0,20.543,20.532,20.0]
[1680461982973,10.0,20.543,20.531,10.0]
[1680461983172,10.0,20.543,20.532,20.0]
[1680461985189,10.0,20.547,20.532,20.0]
[1680461985385,10.0,20.551,20.533,27.0]
[1680461985591,10.0,20.551,20.535,10.0]
[1680461985785,10.0,20.551,20.537,10.0]
[1680461986790,10.0,20.551,20.536,17.0]
[1680461987292,10.0,20.551,20.538,10.0]
[1680461987679,10.0,20.551,20.537,110.3141]
[1680461992095,28.23,20.55,20.537,110.3141]
[1680461993982,28.23,20.55,20.539,10.0]
[1680461996899,28.23,20.55,20.538,10.0]
[1680461997193,28.23,20.55,20.54,10.0]
[1680461997384,28.23,20.55,20.538,10.0]
[1680462000399,28.23,20.55,20.537,110.3141]
[1680462000817,10.0,20.549,20.537,110.3141]
[1680462001296,17.0,20.548,20.537,110.3141]
[1680462001492,10.0,20.549,20.537,110.3141]
[1680462001694,10.0,20.547,20.537,110.3141]
[1680462003913,10.0,20.546,20.537,110.3141]
[1680462004203,10.0,20.546,20.532,20.0]
[1680462004402,10.0,20.544,20.532,20.0]
[1680462004809,17.0,20.543,20.532,20.0]
[1680462005009,17.0,20.543,20.529,19.5881048]
[1680462005010,10.0,20.542,20.533,20.0]
[1680462006118,10.0,20.542,20.533,10.0]
[1680462006411,10.0,20.542,20.532,20.0]
[1680462006591,10.0,20.542,20.53,20.0]
[1680462008801,10.0,20.542,20.529,19.5881048]
[1680462009006,10.0,20.539,20.529,19.5881048]
[1680462009304,17.0,20.538,20.529,19.5881048]
[1680462009502,10.0,20.537,20.529,19.5881048]
[1680462010595,10.0,20.537,20.529,0.1176868]
[1680462014808,10.0,20.535,20.529,0.1176868]
[1680462026611,10.0,20.533,20.529,0.1176868]
[1680462036610,10.0,20.535,20.529,0.1176868]
[1680462036811,10.0,20.533,20.529,0.1176868]
[1680462043533,10.0,20.535,20.529,0.1176868]
[1680462043734,10.0,20.537,20.529,0.1176868]
[1680462043919,38.26,20.54,20.529,0.1176868]
[1680462052051,10.0,20.54,20.529,0.1176868]
[1680462053244,10.0,20.542,20.529,0.1176868]
[1680462066843,111.6262,20.548,20.529,0.1176868]
[1680462067656,111.6262,20.548,20.53,10.0]
[1680462067950,111.6262,20.548,20.532,10.0]
[1680462068157,111.6262,20.548,20.533,20.0]
[1680462068355,111.6262,20.548,20.534,27.0]
[1680462068542,121.6262,20.548,20.534,27.0]
[1680462068852,10.0,20.548,20.533,20.0]
[1680462073344,10.0,20.545,20.531,20.0]
[1680462073548,10.0,20.543,20.529,0.1176868]
[1680462073854,10.0,20.543,20.529,20.1176868]
[1680462074258,10.0,20.543,20.53,10.0]
[1680462074458,10.0,20.543,20.532,10.0]
[1680462074643,10.0,20.543,20.533,20.0]
[1680462075653,10.0,20.543,20.531,20.0]
[1680462077157,10.0,20.543,20.529,20.1176868]
[1680462080960,10.0,20.543,20.529,0.1176868]
[1680462082070,10.0,20.539,20.529,0.1176868]
[1680462087856,28.12,20.54,20.529,0.1176868]
[1680462088058,28.12,20.54,20.529,20.1176868]
[1680462092060,10.0,20.543,20.529,20.1176868]
[1680462092363,10.0,20.539,20.529,20.1176868]
[1680462094566,10.0,20.539,20.529,0.1176868]
[1680462106879,10.0,20.537,20.529,0.1176868]
[1680462108561,10.0,20.539,20.529,0.1176868]
[1680462114064,10.0,20.537,20.529,0.1176868]
[1680462122188,17.3029027,20.539,20.529,0.1176868]
[1680462122797,17.0,20.538,20.529,0.1176868]
[1680462123304,10.0,20.537,20.529,0.1176868]
[1680462123588,17.0,20.536,20.529,0.1176868]
[1680462123794,10.0,20.535,20.529,0.1176868]
[1680462123991,17.0,20.534,20.529,0.1176868]
[1680462124196,10.0,20.533,20.529,0.1176868]
[1680462128388,10.0,20.531,20.529,0.1176868]
[1680462128802,17.0,20.53,20.529,0.1176868]
[1680462130287,10.0,20.529,20.516,10.0]
[1680462130483,10.0,20.527,20.512,108.7776]
[1680462132097,17.0,20.526,20.514,10.0]
[1680462132297,17.0,20.526,20.512,108.7776]
[1680462132603,17.0,20.526,20.515,19.483894]
[1680462133004,10.0,20.525,20.515,19.483894]
[1680462135497,10.0,20.523,20.515,19.483894]
[1680462146907,10.0,20.523,20.506,10.0]
[1680462147112,10.0,20.523,20.508,10.0]
[1680462150012,10.0,20.523,20.51,10.0]
[1680462151617,10.0,20.523,20.508,10.0]
[1680462151816,10.0,20.523,20.51,10.0]
[1680462152202,10.0,20.527,20.51,10.0]
[1680462152519,38.26,20.53,20.512,10.0]
[1680462152898,38.26,20.53,20.514,10.0]
[1680462153098,38.26,20.53,20.516,10.0]
[1680462156519,38.26,20.53,20.515,115.4317]
[1680462156703,38.26,20.53,20.517,10.0]
[1680462158221,38.26,20.53,20.516,115.824]
[1680462160409,38.24,20.53,20.516,115.824]
[1680462167118,32.62,20.53,20.516,115.824]
[1680462179126,22.62,20.53,20.516,115.824]
[1680462182239,22.62,20.53,20.517,10.0]
[1680462182439,22.62,20.53,20.517,27.0]
[1680462187151,10.0,20.529,20.517,27.0]
[1680462188953,28.27,20.53,20.517,27.0]
[1680462192156,28.27,20.53,20.517,17.0]
[1680462194650,28.27,20.53,20.518,10.0]
[1680462196658,28.27,20.53,20.517,27.0]
[1680462197656,28.27,20.53,20.517,10.0]
[1680462200742,28.27,20.53,20.519,10.0]
[1680462201144,10.0,20.535,20.519,10.0]
[1680462201345,10.0,20.533,20.521,10.0]
[1680462201854,10.0,20.533,20.52,17.0]
[1680462207260,10.0,20.533,20.519,10.0]
[1680462209951,10.0,20.529,20.518,114.6552]
[1680462214566,10.0,20.529,20.518,114.6552]
[1680462216160,10.0,20.529,20.515,115.4317]
[1680462216344,10.0,20.527,20.515,115.4317]
[1680462228773,10.0,20.525,20.515,115.4317]
[1680462240690,10.0,20.527,20.515,115.4317]
[1680462244187,10.0,20.527,20.517,10.0]
[1680462244388,10.0,20.527,20.516,10.0]
[1680462245294,10.0,20.529,20.516,10.0]
[1680462245890,10.0,20.527,20.516,10.0]
[1680462252791,10.0,20.525,20.516,10.0]
[1680462270414,10.0,20.527,20.516,10.0]
[1680462278725,10.0,20.529,20.516,10.0]
[1680462285428,22.49,20.53,20.516,10.0]
[1680462285633,22.49,20.53,20.518,10.0]
[1680462286226,22.49,20.53,20.519,10.0]
[1680462303251,22.49,20.53,20.521,10.0]
[1680462304258,22.49,20.53,20.522,10.0]
[1680462307163,22.49,20.53,20.518,10.0]
[1680462307361,22.49,20.53,20.52,10.0]
[1680462307544,22.49,20.53,20.521,17.0]
[1680462307743,22.49,20.53,20.522,10.0]
[1680462308158,22.49,20.53,20.521,17.0]
[1680462310159,22.49,20.53,20.522,10.0]
[1680462314963,3.408,20.536,20.524,10.0]
[1680462315164,3.408,20.536,20.525,17.0]
[1680462315367,3.408,20.536,20.526,10.0]
[1680462315548,3.408,20.536,20.528,10.0]
[1680462320163,3.408,20.536,20.527,10.0]
[1680462320465,3.408,20.536,20.529,10.0]
[1680462320967,3.408,20.536,20.528,27.0]
[1680462324266,3.408,20.536,20.528,17.0]
[1680462324953,3.408,20.536,20.527,10.0]
[1680462328363,3.408,20.536,20.529,10.0]
[1680462329772,3.408,20.536,20.528,10.0]
[1680462330067,3.408,20.536,20.527,42.44]
[1680462331169,3.408,20.536,20.527,32.44]
[1680462334173,10.0,20.535,20.527,32.44]
[1680462334375,10.0,20.533,20.527,32.44]
[1680462334569,17.0,20.532,20.527,32.44]
[1680462334771,10.0,20.531,20.527,32.44]
[1680462335955,10.0,20.531,20.527,19.4409]
[1680462337272,10.0,20.529,20.527,19.4409]
[1680462337662,10.0,20.529,20.515,115.4317]
[1680462339176,17.0,20.528,20.515,115.4317]
[1680462339377,10.0,20.527,20.515,115.4317]
[1680462339576,10.0,20.525,20.515,115.4317]
[1680462342079,10.0,20.525,20.515,134.919935]
[1680462351474,10.0,20.529,20.517,10.0]
[1680462351675,28.28,20.53,20.517,10.0]
[1680462352293,28.28,20.53,20.519,10.0]
[1680462352481,28.28,20.53,20.52,17.0]
[1680462352681,28.28,20.53,20.519,10.0]
[1680462353700,28.28,20.53,20.517,10.0]
[1680462353890,28.28,20.53,20.519,10.0]
[1680462355201,28.28,20.53,20.518,17.0]
[1680462356796,10.0,20.529,20.518,17.0]
[1680462356994,10.0,20.529,20.518,10.0]
[1680462357193,10.0,20.529,20.519,17.0]
[1680462358202,10.0,20.529,20.518,10.0]
[1680462358401,10.0,20.529,20.519,17.0]
[1680462360702,10.0,20.529,20.518,10.0]
[1680462360903,10.0,20.529,20.519,17.0]
[1680462361305,10.0,20.529,20.518,10.0]
[1680462361505,10.0,20.529,20.519,17.0]
[1680462362396,10.0,20.529,20.518,10.0]
[1680462362595,10.0,20.529,20.519,17.0]
[1680462363189,10.0,20.529,20.518,10.0]
[1680462363696,10.0,20.529,20.516,10.0]
[1680462363899,10.0,20.529,20.495,194.34]
[1680462364100,28.28,20.53,20.516,10.0]
[1680462364305,10.0,20.529,20.516,10.0]
[1680462365105,10.0,20.529,20.495,48.54]
[1680462365307,10.0,20.527,20.51,7.3029027]
[1680462365510,10.0,20.525,20.51,7.3029027]
[1680462369298,10.0,20.523,20.51,7.3029027]
[1680462371100,10.0,20.525,20.51,7.3029027]
[1680462375618,10.0,20.523,20.51,7.3029027]
[1680462380014,10.0,20.523,20.502,396.3]
[1680462380197,10.0,20.523,20.507,7.3029027]
[1680462381015,10.0,20.525,20.507,7.3029027]
[1680462385403,10.0,20.523,20.507,7.3029027]
[1680462389322,10.0,20.523,20.515,19.488235]
[1680462389711,10.0,20.521,20.515,19.488235]
[1680462391020,10.0,20.523,20.515,19.488235]
[1680462391522,10.0,20.523,20.506,10.0]
[1680462391828,10.0,20.523,20.508,10.0]
[1680462392014,10.0,20.523,20.51,10.0]
[1680462395428,10.0,20.523,20.508,10.0]
[1680462395616,10.0,20.523,20.51,10.0]
[1680462396529,28.28,20.52,20.508,10.0]
[1680462396730,10.0,20.519,20.508,10.0]
[1680462399329,10.0,20.519,20.506,29.492864]
[1680462400018,10.0,20.519,20.506,19.492864]
[1680462400944,22.54,20.52,20.508,10.0]
[1680462401124,22.54,20.52,20.51,10.0]
[1680462403234,22.54,20.52,20.508,10.0]
[1680462404840,22.54,20.52,20.507,10.0]
[1680462409942,10.0,20.523,20.508,20.0]
[1680462410132,3.409,20.529,20.51,22.64]
[1680462410336,3.409,20.529,20.511,37.0]
[1680462410544,3.409,20.529,20.512,10.0]
[1680462410834,3.409,20.529,20.513,154.9176]
[1680462411234,3.409,20.529,20.514,17.3029027]
[1680462411438,3.409,20.529,20.515,17.0]
[1680462411636,3.409,20.529,20.516,10.0]
[1680462411933,3.409,20.529,20.517,17.0]
[1680462412140,3.409,20.529,20.518,10.0]
[1680462412337,3.409,20.529,20.519,17.0]
[1680462412839,3.409,20.529,20.52,10.0]
[1680462413026,20.0,20.535,20.521,17.0]
[1680462413227,20.0,20.535,20.522,10.0]
[1680462413432,20.0,20.535,20.524,10.0]
[1680462413926,6.817,20.536,20.526,10.0]
[1680462414135,3.409,20.529,20.526,10.0]
[1680462414437,6.817,20.536,20.528,10.0]
[1680462414740,22.54,20.54,20.53,10.0]
[1680462415143,22.54,20.54,20.531,17.0]
[1680462415341,22.54,20.54,20.532,10.0]
[1680462415636,22.54,20.54,20.533,17.0]
[1680462415842,22.54,20.54,20.534,10.0]
[1680462416045,6.817,20.536,20.534,10.0]
[1680462416227,22.54,20.54,20.534,10.0]
[1680462417041,6.817,20.536,20.533,17.0]
[1680462419448,6.817,20.536,20.534,20.0]
[1680462419627,6.817,20.536,20.535,27.0]
[1680462437960,6.817,20.536,20.535,17.0]